{"text_format":"1","workbook":"xlsx","n_sheets":4,"sheets":["自主点検票","【記入例】","集計表","メール"],"not_rendered":{"charts":0,"images":17,"macros":1,"external_links":0,"defined_names":3,"comments":1,"pivot_tables":0},"unopened":[],"bounds":{"document_bytes":16777216,"sheet_cells":100000,"rows_first":2000,"rows_last":500,"rows_between":2000,"halvings":0,"cell_chars":16384,"cell_head_chars":4096},"cells_cut":0,"cells_raw":0,"read":"whole","date_system":"1900"}

{"sheet":"自主点検票","index":0,"n_rows":38,"n_cols":21,"rows_kept":38,"cut":false,"hidden":false,"merged":[[0,0,1,13],[15,6,20,13],[24,1,28,13],[30,5,30,13],[20,16,21,16],[8,2,8,8],[19,1,19,4],[10,0,10,13],[11,1,11,2],[22,1,22,2],[20,1,20,4],[21,1,21,4],[22,3,22,4],[12,4,12,5],[17,0,17,4],[14,5,14,13],[20,17,20,24],[21,17,21,24],[0,16,0,24],[6,17,6,24],[7,17,7,24],[6,16,7,16],[18,20,18,24],[18,17,18,19],[5,17,5,24],[4,17,4,24],[4,16,5,16],[2,17,2,24],[3,17,3,24],[2,16,3,16],[19,17,19,24],[18,16,19,16],[14,0,14,4],[9,17,9,24],[8,16,9,16],[12,16,13,16],[14,16,15,16],[10,16,11,16],[14,17,14,24],[15,17,15,24],[8,17,8,24],[10,17,10,24],[11,17,11,24],[12,17,12,24],[13,17,13,24],[23,0,23,13],[16,17,16,24],[17,17,17,24],[16,16,17,16],[2,9,2,12],[21,8,22,13],[5,10,6,13],[7,9,8,9],[7,10,8,13],[11,7,11,8],[12,7,12,8],[7,2,7,8],[18,1,18,4],[11,10,12,12],[5,1,5,8],[15,1,16,4],[2,3,2,6],[2,0,2,2],[7,0,8,0],[13,0,13,13],[5,0,6,0],[5,9,6,9],[6,2,6,8],[3,0,4,0],[3,8,4,8],[3,1,4,7],[3,10,3,13],[4,10,4,13],[24,17,24,24],[25,17,25,24],[28,17,28,24],[29,17,29,24],[37,3,38,10],[30,17,30,24],[31,17,31,24],[30,16,31,16],[32,17,32,24],[33,17,33,24],[28,16,29,16],[26,17,26,24],[27,17,27,24],[26,16,27,16],[31,0,31,13],[29,3,29,13]]}
["転倒災害再発防止のための自主点検報告書（メール送付票）",null,null,null,null,null,null,null,null,null,null,null,null,null,null,null,"関連リンク集"]
[]
["十和田",null,null,"労働基準監督署長　殿",null,null,null,null,null,{"$f":"TODAY()","v":"2023-12-05"},null,null,null,"作成",null,null,null,"転倒予防・腰痛予防の取組について"]
["事業場\nの\n名称",null,null,null,null,null,null,null,"代表者\n職氏名","職名",null,null,null,null,null,null,null,"（厚生労働省ＨＰ）"]
[null,null,null,null,null,null,null,null,null,"氏名",null,null,null,null,null,null,null,"職場のあんぜんサイト"]
["事業場\nの\n所在地",null,null,null,null,null,null,null,null,"事業\nの\n種類",null,null,null,null,null,null,null,"（職場のあんぜんサイト 厚生労働省）"]
[null,"℡",null,null,null,null,null,null,null,null,null,null,null,null,null,null,null,"適切な「靴」を選 びましょう"]
["点検者\n職氏名","職名",null,null,null,null,null,null,null,"労働\n者数",null,null,null,null,null,null,null,"（厚生労働省ＨＰ）"]
[null,"氏名",null,null,null,null,null,null,null,null,null,null,null,null,null,null,null,"ロコチェック"]
[null,null,null,null,null,null,null,null,null,null,null,null,null,null,null,null,null,"（日本整形外科学会 ロコモティブシンドローム予防啓発公式サイト）"]
["１、今回発生した転倒災害は、いつ、どのような人が被災したものですか？",null,null,null,null,null,null,null,null,null,null,null,null,null,null,null,null,"転びの予防 体力チェック"]
[null,2023,null,12,31,{"$f":"DATE(B12,D12,E12)","v":45291},null,null,null,null,null,null,null,null,null,null,null,"（中央労働災害防止協会）"]
[null,null,10,0,"頃発生",null,null,null,null,null,null,null,null,null,null,null,null,"職場３分エクササイズ"]
["２、今回発生した転倒災害は、どのようにして発生したものですか？",null,null,null,null,null,null,null,null,null,null,null,null,null,null,null,null,"（YouTube 厚生労働省公式チャンネル）"]
["⑴、転倒の型",null,null,null,null,"⑶、間接的な要因（複数回答可）",null,null,null,null,null,null,null,null,null,null,null,"転倒予防セミナー"]
[null,null,null,null,null,null,null,null,null,null,null,null,null,null,null,null,null,"（中央労働災害防止協会）"]
[null,null,null,null,null,null,null,null,null,null,null,null,null,null,null,null,null,"たった一度の転倒で寝たきりに"]
["⑵、原因",null,null,null,null,null,null,null,null,null,null,null,null,null,null,null,null,"（内閣府 政府広報オンライン）"]
[null,{"$f":"集計表!M7","v":"床・通路に放置された物"},null,null,null,null,null,null,null,null,null,null,null,null,null,null,null,"骨粗しょう症検診",null,null,"【参考】十和田市㏋ ⇒ 健康診査等のご案内 ⇒ 健康診査の種類・料金表"]
[null,{"$f":"集計表!N7","v":"床・通路の凹凸、段差"},null,null,null,null,null,null,null,null,null,null,null,null,null,null,null,"※ 他の市町村の場合は所在地の市町村担当窓口、協会けんぽの場合は問合せ窓口等を参照願います。"]
[null,{"$f":"集計表!O7","v":"設備や什器"},null,null,null,null,null,null,null,null,null,null,null,null,null,null,null,"健康経営®"]
[null,{"$f":"集計表!P7","v":"電源コードやヒモ等"},null,null,null,null,null,null,null,null,null,null,null,null,null,null,null,"（NPO法人健康経営研究会）\n※ 「健康経営®」は、NPO法人健康経営研究会の登録商標です。"]
[null,{"$f":"集計表!Q7","v":"その他 ➡"}]
["３、今後、転倒災害の再発防止対策として取り組むものはありますか？（複数回答可）"]
[null,null,null,null,null,null,null,null,null,null,null,null,null,null,null,null,null,"エイジフレンドリー補助金"]
[null,null,null,null,null,null,null,null,null,null,null,null,null,null,null,null,null,"（厚生労働省）"]
[null,null,null,null,null,null,null,null,null,null,null,null,null,null,null,null,null,"健康経営有料法人認定制度"]
[null,null,null,null,null,null,null,null,null,null,null,null,null,null,null,null,null,"（経済産業省）"]
[null,null,null,null,null,null,null,null,null,null,null,null,null,null,null,null,null,"中小規模事業場 安全衛生サポート事業"]
[null,null,null,null,null,null,null,null,null,null,null,null,null,null,null,null,null,"（中央労働災害防止協会）"]
[null,null,null,null,null,null,null,null,null,null,null,null,null,null,null,null,null,"健やか力推進センター"]
["４、転倒災害防止に関連する支援策等で関心のあるものはありますか？（複数回答可）",null,null,null,null,null,null,null,null,null,null,null,null,null,null,null,null,"（青森県医師会 健やか力推進センター）"]
[null,null,null,null,null,null,null,null,null,null,null,null,null,null,null,null,null,"健康宣言事業所認定制度"]
[null,null,null,null,null,null,null,null,null,null,null,null,null,null,null,null,null,"（協会けんぽ 青森支部）"]
[]
[]
[]
[null,null,null,{"$f":"HYPERLINK(\"mailto:\"&メール!B2&\"&subject=\"&メール!B4&\"&body=\"&メール!B5&メール!B6&メール!B7&メール!B8&メール!B9&\"\",メール!A10)","v":"報告メールを作成する"}]

{"sheet":"【記入例】","index":1,"n_rows":0,"n_cols":0,"rows_kept":0,"cut":false,"hidden":false,"merged":[]}

{"sheet":"集計表","index":2,"n_rows":38,"n_cols":58,"rows_kept":38,"cut":false,"hidden":true,"merged":[[0,2,1,2],[0,0,1,0],[0,1,1,1],[0,13,0,31],[0,33,0,52],[0,3,1,3],[0,53,0,57],[0,32,1,32],[0,6,1,6],[0,11,1,11],[0,4,1,4],[0,5,1,5],[0,7,1,7],[0,8,1,8],[0,9,1,9],[0,10,1,10]]}
["業種\n号別","業種","事業場名","事業場規模\n労働者数","発生年月日","曜日",null,"時間","性別","年代","２⑴","２⑵","2⑵","２⑶",null,null,null,null,null,null,null,null,null,null,null,null,null,null,null,null,null,null,"その他",3,null,null,null,null,null,null,null,null,null,null,null,null,null,null,null,null,null,null,null,4]
[null,null,null,null,null,null,null,null,null,null,null,null,"その他","a","b","c","d","e","f","g","h","i","j","k","l","m","n","o","p","q","r","s",null,"a","b","c","d","e","f","g","h","i","j","k","l","m","n","o","p","q","r",null,"s","a","b","c","d","e"]
[{"$f":"A7","v":1},{"$f":"B7","v":"製造業"},{"$f":"自主点検票!B4","v":0},{"$f":"D7","v":"～9人"},{"$f":"DATE(自主点検票!B12,自主点検票!D12,自主点検票!E12)","v":"2023-12-31"},{"$f":"E3","v":45291},null,{"$f":"TIME(自主点検票!C13,自主点検票!D13,0)","v":"10:00:00"},2,5,1,1,{"$f":"自主点検票!D23","v":0},false,false,false,false,false,false,false,false,false,false,false,false,false,false,false,false,false,false,false,{"$f":"自主点検票!I22","v":0},false,false,false,false,false,false,false,false,false,false,false,false,false,false,false,false,false,false,{"$f":"自主点検票!D30","v":0},false,false,false,false,false,false]
[]
[]
["号別","業種",null,"労働者数","年","月","日","時","分","年代","転倒の型"]
[1,{"$f":"VLOOKUP(A7,A9:B25,2)","v":"製造業"},1,{"$f":"VLOOKUP(C7,C9:D14,2)","v":"～9人"},null,null,null,null,null,"10歳代",{"$f":"K3","v":1},{"$f":"VLOOKUP(K7,K9:Q11,2)","v":"つまづき"},{"$f":"VLOOKUP($K$7,$K$9:$Q$11,3)","v":"床・通路に放置された物"},{"$f":"VLOOKUP($K$7,$K$9:$Q$11,4)","v":"床・通路の凹凸、段差"},{"$f":"VLOOKUP($K$7,$K$9:$Q$11,5)","v":"設備や什器"},{"$f":"VLOOKUP($K$7,$K$9:$Q$11,6)","v":"電源コードやヒモ等"},{"$f":"VLOOKUP($K$7,$K$9:$Q$11,7)","v":"その他 ➡"}]
[null,null,null,null,2023,1,1,0,0,"20歳代"]
[1,"製造業",1,"～9人",2024,2,2,1,10,"30歳代",1,"つまづき","床・通路に放置された物","床・通路の凹凸、段差","設備や什器","電源コードやヒモ等","その他 ➡"]
[2,"鉱業",2,"10～29人",2025,3,3,2,20,"40歳代",2,"滑り","積雪や凍結(屋外)","水分や油分(屋内)","ゴミ・残渣物","床・通路の材質(低摩擦)","その他 ➡"]
[3,"建設業",3,"30～49人",2026,4,4,3,30,"50歳代",3,"踏み外し","階段（屋外）","階段（屋内）","段差","ピット","その他 ➡"]
[4,"運輸交通業",4,"50～99人",2027,5,5,4,40,"60歳代"]
[5,"貨物取扱業",5,"100～299人",2028,6,6,5,50,"70歳代"]
[6,"農林業",6,"300人～",2029,7,7,6,null,"80歳代"]
[7,"畜・水産業",null,null,2030,8,8,7,null,"90歳代"]
[8,"商業",null,null,2031,9,9,8]
[9,"金融・広告業",null,null,2032,10,10,9]
[10,"映画・演劇業",null,null,2033,11,11,10]
[11,"通信業",null,null,2034,12,12,11]
[12,"教育・研究業",null,null,2035,null,13,12]
[13,"保健衛生業",null,null,2036,null,14,13]
[14,"接客娯楽業",null,null,2037,null,15,14]
[15,"清掃・と畜業",null,null,2038,null,16,15]
[16,"官公署",null,null,2039,null,17,16]
[17,"その他の事業",null,null,2040,null,18,17]
[null,null,null,null,2041,null,19,18]
[null,null,null,null,2042,null,20,19]
[null,null,null,null,2043,null,21,20]
[null,null,null,null,2044,null,22,21]
[null,null,null,null,2045,null,23,22]
[null,null,null,null,2046,null,24,23]
[null,null,null,null,2047,null,25]
[null,null,null,null,2048,null,26]
[null,null,null,null,2049,null,27]
[null,null,null,null,2050,null,28]
[null,null,null,null,null,null,29]
[null,null,null,null,null,null,30]
[null,null,null,null,null,null,31]

{"sheet":"メール","index":3,"n_rows":10,"n_cols":2,"rows_kept":10,"cut":false,"hidden":true,"merged":[[4,0,8,0]]}
[null,"報告メール"]
["to","0205towada@mhlw.go.jp"]
["cc"]
["件名","【報告】転倒災害再発防止のための自主点検報告書"]
["本文",{"$f":"\"・【事業場の名称】%0a　　\"&自主点検票!B4&\"%0A\"","v":"・【事業場の名称】%0a　　%0A"}]
[null,{"$f":"\"・【事業場の所在地】%0a　　\"&自主点検票!B6&\"%0A\"","v":"・【事業場の所在地】%0a　　%0A"}]
[null,{"$f":"\"・【事業場の連絡先】%0a　　\"&自主点検票!C7&\"%0A\"","v":"・【事業場の連絡先】%0a　　%0A"}]
[null,{"$f":"\"・【事業場の担当者】%0a　　\"&自主点検票!C8&\"　\" &自主点検票!C9&\"%0A\"","v":"・【事業場の担当者】%0a　　　%0A"}]
[null,"%0A\n%0A\n※　自主点検を実施の上、上書き保存してから自主点検票Excelファイルを添付してください。%0A\n%0A"]
["報告メールを作成する"]